[Event "Titled Tuesday Blitz June 13 Late 2023"]
[White "ElDivis"]
[Black "Pesotskiy, Mikhail"]
[BlackFideId "34164453"]
[WhiteElo "2541"]
[BlackElo "2131"]
[Result "1-0"]
[Round "5"]
[TimeControl "180+2"]
[Date "2023.06.13"]
[WhiteClock "0:00:16"]
[BlackClock "0:00:09"]
[Board "96"]

1. e4 {[%clk 0:02:59]}  e6 {[%clk 0:02:56]} 2. d4 {[%clk 0:02:58]}  d5 {[%clk 0:02:56]} 3. Nc3 {[%clk 0:02:57]}  Bb4 {[%clk 0:02:55]} 4. e5 {[%clk 0:02:55]}  c5 {[%clk 0:02:55]} 5. a3 {[%clk 0:02:55]}  Qa5 {[%clk 0:02:55]} 6. axb4 {[%clk 0:02:45]}  Qxa1 {[%clk 0:02:56]} 7. bxc5 {[%clk 0:02:45]}  Qa5 {[%clk 0:02:53]} 8. Bd2 {[%clk 0:02:37]}  Nc6 {[%clk 0:02:27]} 9. Nb5 {[%clk 0:02:28]}  Qd8 {[%clk 0:02:27]} 10. Nd6+ {[%clk 0:02:28]}  Kf8 {[%clk 0:02:28]} 11. c3 {[%clk 0:02:24]}  Nge7 {[%clk 0:02:26]} 12. Bd3 {[%clk 0:02:17]}  b6 {[%clk 0:02:21]} 13. Qh5 {[%clk 0:02:12]}  Ng6 {[%clk 0:02:13]} 14. Nf3 {[%clk 0:01:59]}  Qe7 {[%clk 0:01:22]} 15. Ng5 {[%clk 0:01:52]}  Nd8 {[%clk 0:01:22]} 16. O-O {[%clk 0:01:25]}  bxc5 {[%clk 0:01:15]} 17. f4 {[%clk 0:01:02]}  c4 {[%clk 0:01:07]} 18. Bc2 {[%clk 0:00:59]}  Kg8 {[%clk 0:00:58]} 19. Qg4 {[%clk 0:00:47]}  Nf8 {[%clk 0:00:23]} 20. f5 {[%clk 0:00:39]}  exf5 {[%clk 0:00:23]} 21. Bxf5 {[%clk 0:00:38]}  Be6 {[%clk 0:00:16]} 22. Bxe6 {[%clk 0:00:30]}  fxe6 {[%clk 0:00:17]} 23. Rf7 {[%clk 0:00:26]}  Nxf7 {[%clk 0:00:15]} 24. Ngxf7 {[%clk 0:00:25]}  Ng6 {[%clk 0:00:14]} 25. Bg5 {[%clk 0:00:22]}  Qd7 {[%clk 0:00:15]} 26. h4 {[%clk 0:00:21]}  Rf8 {[%clk 0:00:15]} 27. h5 {[%clk 0:00:21]}  Rxf7 {[%clk 0:00:16]} 28. hxg6 {[%clk 0:00:21]}  hxg6 {[%clk 0:00:15]} 29. Be3 {[%clk 0:00:19]}  Qe7 {[%clk 0:00:09]} 30. Qxg6 {[%clk 0:00:18]}  Rf8 {[%clk 0:00:09]} 31. Bg5 {[%clk 0:00:17]}  Qe8 {[%clk 0:00:10]} 32. Nxe8 {[%clk 0:00:16]}  Rxe8 {[%clk 0:00:09]} 33. Qxe8+ {[%clk 0:00:16]} 1-0


[Site "https://www.chess.com"]

[Event "Titled Tuesday Blitz June 13 Late 2023"]
[White "Diaz Rosas, Julio Cesar"]
[Black "Ozalp, Burak"]
[WhiteFideId "5105099"]
[BlackFideId "6314210"]
[WhiteElo "2284"]
[BlackElo "2106"]
[Result "0-1"]
[Round "5"]
[TimeControl "180+2"]
[Date "2023.06.13"]
[WhiteClock "0:00:00"]
[BlackClock "0:00:06"]
[Board "97"]

1. e4 {[%clk 0:03:00]}  c6 {[%clk 0:02:59]} 2. d4 {[%clk 0:02:56]}  d5 {[%clk 0:02:59]} 3. exd5 {[%clk 0:02:57]}  cxd5 {[%clk 0:02:59]} 4. Bd3 {[%clk 0:02:57]}  Nc6 {[%clk 0:02:59]} 5. Nf3 {[%clk 0:02:51]}  Qc7 {[%clk 0:02:58]} 6. h3 {[%clk 0:02:50]}  Nf6 {[%clk 0:02:35]} 7. O-O {[%clk 0:02:49]}  g6 {[%clk 0:02:35]} 8. Nc3 {[%clk 0:02:34]}  Bg7 {[%clk 0:02:28]} 9. Bg5 {[%clk 0:02:28]}  O-O {[%clk 0:02:25]} 10. Bxf6 {[%clk 0:02:22]}  exf6 {[%clk 0:02:20]} 11. Nxd5 {[%clk 0:02:15]}  Qa5 {[%clk 0:02:09]} 12. c4 {[%clk 0:02:04]}  Rd8 {[%clk 0:01:56]} 13. a3 {[%clk 0:01:56]}  Rd7 {[%clk 0:01:46]} 14. b4 {[%clk 0:01:52]}  Qd8 {[%clk 0:01:46]} 15. b5 {[%clk 0:01:49]}  Ne7 {[%clk 0:01:46]} 16. Nxe7+ {[%clk 0:01:46]}  Rxe7 {[%clk 0:01:44]} 17. d5 {[%clk 0:01:41]}  f5 {[%clk 0:01:44]} 18. Ra2 {[%clk 0:01:37]}  a6 {[%clk 0:01:42]} 19. bxa6 {[%clk 0:01:32]}  Rxa6 {[%clk 0:01:37]} 20. Re1 {[%clk 0:00:57]}  Rxe1+ {[%clk 0:01:37]} 21. Qxe1 {[%clk 0:00:58]}  Bf8 {[%clk 0:01:29]} 22. a4 {[%clk 0:00:56]}  Bd7 {[%clk 0:01:21]} 23. Bc2 {[%clk 0:00:51]}  Qc7 {[%clk 0:01:16]} 24. Bb3 {[%clk 0:00:50]}  Ra8 {[%clk 0:01:11]} 25. Qe5 {[%clk 0:00:45]}  Bd6 {[%clk 0:01:08]} 26. Qc3 {[%clk 0:00:39]}  h6 {[%clk 0:00:53]} 27. Nd4 {[%clk 0:00:34]}  Be5 {[%clk 0:00:53]} 28. Qd2 {[%clk 0:00:31]}  Kg7 {[%clk 0:00:49]} 29. Nf3 {[%clk 0:00:25]}  Bf6 {[%clk 0:00:45]} 30. a5 {[%clk 0:00:22]}  g5 {[%clk 0:00:45]} 31. Nd4 {[%clk 0:00:19]}  Qe5 {[%clk 0:00:38]} 32. Nf3 {[%clk 0:00:18]}  Qc7 {[%clk 0:00:38]} 33. Qd3 {[%clk 0:00:15]}  g4 {[%clk 0:00:36]} 34. hxg4 {[%clk 0:00:15]}  fxg4 {[%clk 0:00:37]} 35. Nd4 {[%clk 0:00:15]}  Qe5 {[%clk 0:00:34]} 36. Nc2 {[%clk 0:00:13]}  Bf5 {[%clk 0:00:28]} 37. Qd1 {[%clk 0:00:12]}  g3 {[%clk 0:00:26]} 38. fxg3 {[%clk 0:00:10]}  Qxg3 {[%clk 0:00:27]} 39. Qf3 {[%clk 0:00:09]}  Qg5 {[%clk 0:00:23]} 40. Kf1 {[%clk 0:00:06]}  Re8 {[%clk 0:00:19]} 41. Ne1 {[%clk 0:00:05]}  Bg4 {[%clk 0:00:19]} 42. Qf2 {[%clk 0:00:05]}  Qh5 {[%clk 0:00:16]} 43. Nf3 {[%clk 0:00:04]}  Qh1+ {[%clk 0:00:11]} 44. Qg1 {[%clk 0:00:04]}  Qh5 {[%clk 0:00:10]} 45. Qf2 {[%clk 0:00:03]}  Bf5 {[%clk 0:00:11]} 46. Bc2 {[%clk 0:00:03]}  Qh1+ {[%clk 0:00:10]} 47. Qg1 {[%clk 0:00:02]}  Qh5 {[%clk 0:00:10]} 48. Qf2 {[%clk 0:00:02]}  Bg4 {[%clk 0:00:09]} 49. Qg1 {[%clk 0:00:01]}  Bh4 {[%clk 0:00:07]} 50. Bd3 {[%clk 0:00:01]}  Bxf3 {[%clk 0:00:05]} 51. gxf3+ {[%clk 0:00:02]}  Kf8 {[%clk 0:00:06]} 52. Re2 {[%clk 0:00:03]}  Qxf3+ {[%clk 0:00:05]} 53. Rf2 {[%clk 0:00:02]}  Bxf2 {[%clk 0:00:04]} 54. Qxf2 {[%clk 0:00:02]}  Qxd3+ {[%clk 0:00:04]} 55. Kg1 {[%clk 0:00:03]}  Qg6+ {[%clk 0:00:04]} 56. Kf1 {[%clk 0:00:02]}  Re4 {[%clk 0:00:05]} 57. d6 {[%clk 0:00:01]}  Qg4 {[%clk 0:00:04]} 58. d7 {[%clk 0:00:01]}  Qd1+ {[%clk 0:00:03]} 59. Kg2 {[%clk 0:00:01]}  Qxd7 {[%clk 0:00:03]} 60. Qf3 {[%clk 0:00:01]}  Qe7 {[%clk 0:00:04]} 61. Kf2 {[%clk 0:00:01]}  Re6 {[%clk 0:00:03]} 62. Qd3 {[%clk 0:00:01]}  Rf6+ {[%clk 0:00:04]} 63. Kg2 {[%clk 0:00:02]}  Rg6+ {[%clk 0:00:04]} 64. Kf2 {[%clk 0:00:01]}  Qf6+ {[%clk 0:00:05]} 65. Ke2 {[%clk 0:00:02]}  Qe6+ {[%clk 0:00:05]} 66. Kf2 {[%clk 0:00:02]}  Qf6+ {[%clk 0:00:05]} 67. Ke2 {[%clk 0:00:02]}  Qg5 {[%clk 0:00:05]} 68. Qf3 {[%clk 0:00:02]}  Qg2+ {[%clk 0:00:05]} 69. Qxg2 {[%clk 0:00:02]}  Rxg2+ {[%clk 0:00:06]} 70. Kd3 {[%clk 0:00:00]}  Ra2 {[%clk 0:00:06]} 0-1


[Site "https://www.chess.com"]

[Event "Titled Tuesday Blitz June 13 Late 2023"]
[White "Siniauski, Artsiom"]
[Black "Topalov, Aleksandar"]
[WhiteFideId "13512269"]
[BlackFideId "925659"]
[WhiteElo "2065"]
[BlackElo "2151"]
[Result "1-0"]
[Round "5"]
[TimeControl "180+2"]
[Date "2023.06.13"]
[WhiteClock "0:01:05"]
[BlackClock "0:00:00"]
[Board "98"]

1. e4 {[%clk 0:02:57]}  e6 {[%clk 0:02:59]} 2. d4 {[%clk 0:02:48]}  d5 {[%clk 0:02:59]} 3. Nc3 {[%clk 0:02:49]}  Bb4 {[%clk 0:02:58]} 4. e5 {[%clk 0:02:49]}  Qd7 {[%clk 0:02:57]} 5. Qg4 {[%clk 0:02:47]}  Bf8 {[%clk 0:02:56]} 6. a3 {[%clk 0:02:41]}  a5 {[%clk 0:02:56]} 7. h4 {[%clk 0:02:33]}  h5 {[%clk 0:02:55]} 8. Qg3 {[%clk 0:02:30]}  b6 {[%clk 0:02:55]} 9. Bb5 {[%clk 0:02:30]}  c6 {[%clk 0:02:54]} 10. Ba4 {[%clk 0:02:30]}  Ba6 {[%clk 0:02:50]} 11. Nge2 {[%clk 0:02:29]}  Bc4 {[%clk 0:02:48]} 12. Nd1 {[%clk 0:02:09]}  b5 {[%clk 0:02:36]} 13. Bb3 {[%clk 0:02:09]}  Bxb3 {[%clk 0:02:21]} 14. Qxb3 {[%clk 0:02:07]}  Na6 {[%clk 0:01:50]} 15. Bf4 {[%clk 0:02:05]}  c5 {[%clk 0:01:50]} 16. f3 {[%clk 0:02:00]}  Nh6 {[%clk 0:01:44]} 17. Nf2 {[%clk 0:01:58]}  Nf5 {[%clk 0:01:42]} 18. c3 {[%clk 0:01:56]}  a4 {[%clk 0:01:36]} 19. Qc2 {[%clk 0:01:56]}  Rc8 {[%clk 0:01:34]} 20. Qd3 {[%clk 0:01:55]}  Nb8 {[%clk 0:01:20]} 21. Bg5 {[%clk 0:01:51]}  cxd4 {[%clk 0:01:08]} 22. cxd4 {[%clk 0:01:47]}  Nc6 {[%clk 0:01:07]} 23. g4 {[%clk 0:01:41]}  Nh6 {[%clk 0:01:01]} 24. Bd2 {[%clk 0:01:34]}  Be7 {[%clk 0:00:51]} 25. Ng3 {[%clk 0:01:31]}  Qa7 {[%clk 0:00:19]} 26. Bc3 {[%clk 0:01:28]}  b4 {[%clk 0:00:18]} 27. axb4 {[%clk 0:01:27]}  Nxb4 {[%clk 0:00:18]} 28. Qb5+ {[%clk 0:01:25]}  Qd7 {[%clk 0:00:17]} 29. Qxd7+ {[%clk 0:01:23]}  Kxd7 {[%clk 0:00:17]} 30. Rxa4 {[%clk 0:01:24]}  Nc6 {[%clk 0:00:13]} 31. Nxh5 {[%clk 0:01:24]}  g6 {[%clk 0:00:12]} 32. Nf6+ {[%clk 0:01:16]}  Bxf6 {[%clk 0:00:09]} 33. exf6 {[%clk 0:01:17]}  e5 {[%clk 0:00:06]} 34. dxe5 {[%clk 0:01:15]}  Ke6 {[%clk 0:00:07]} 35. Nd3 {[%clk 0:01:11]}  d4 {[%clk 0:00:03]} 36. Bxd4 {[%clk 0:01:10]}  Nxd4 {[%clk 0:00:04]} 37. Rxd4 {[%clk 0:01:11]}  Rhd8 {[%clk 0:00:02]} 38. Rxd8 {[%clk 0:01:06]}  Rxd8 {[%clk 0:00:03]} 39. Ke2 {[%clk 0:01:06]}  Rb8 {[%clk 0:00:00]} 40. Ra1 {[%clk 0:01:05]} 1-0


[Site "https://www.chess.com"]

[Event "Titled Tuesday Blitz June 13 Late 2023"]
[White "Zavgorodniy, Sergiy"]
[Black "Yolosz"]
[WhiteFideId "14110148"]
[WhiteElo "2402"]
[BlackElo "2398"]
[Result "1-0"]
[Round "5"]
[TimeControl "180+2"]
[Date "2023.06.13"]
[WhiteClock "0:01:40"]
[BlackClock "0:00:16"]
[Board "99"]

1. d4 {[%clk 0:03:00]}  Nf6 {[%clk 0:02:53]} 2. c4 {[%clk 0:03:00]}  e6 {[%clk 0:02:53]} 3. Nf3 {[%clk 0:03:00]}  d5 {[%clk 0:02:52]} 4. e3 {[%clk 0:03:00]}  c6 {[%clk 0:02:45]} 5. Nbd2 {[%clk 0:03:00]}  Bb4 {[%clk 0:02:43]} 6. Bd3 {[%clk 0:03:00]}  O-O {[%clk 0:02:42]} 7. O-O {[%clk 0:03:00]}  Nbd7 {[%clk 0:02:41]} 8. e4 {[%clk 0:03:00]}  dxe4 {[%clk 0:02:34]} 9. Nxe4 {[%clk 0:03:01]}  Nxe4 {[%clk 0:02:31]} 10. Bxe4 {[%clk 0:03:02]}  Nf6 {[%clk 0:02:30]} 11. Bc2 {[%clk 0:03:02]}  Be7 {[%clk 0:02:25]} 12. b3 {[%clk 0:03:01]}  b6 {[%clk 0:02:21]} 13. Bb2 {[%clk 0:03:01]}  Bb7 {[%clk 0:02:21]} 14. Qe2 {[%clk 0:03:02]}  Qc7 {[%clk 0:02:17]} 15. Rad1 {[%clk 0:03:01]}  Rad8 {[%clk 0:02:01]} 16. Ne5 {[%clk 0:03:02]}  c5 {[%clk 0:01:55]} 17. f4 {[%clk 0:03:00]}  cxd4 {[%clk 0:01:54]} 18. Bxd4 {[%clk 0:03:00]}  Rxd4 {[%clk 0:01:49]} 19. Rxd4 {[%clk 0:03:00]}  Bc5 {[%clk 0:01:49]} 20. Rd1 {[%clk 0:03:00]}  Rd8 {[%clk 0:01:40]} 21. Qf2 {[%clk 0:03:00]}  Rxd4 {[%clk 0:01:32]} 22. Rxd4 {[%clk 0:03:00]}  g5 {[%clk 0:01:25]} 23. b4 {[%clk 0:02:55]}  Bxd4 {[%clk 0:01:22]} 24. Qxd4 {[%clk 0:02:56]}  h6 {[%clk 0:00:51]} 25. Kf1 {[%clk 0:02:44]}  a5 {[%clk 0:00:43]} 26. a3 {[%clk 0:02:44]}  axb4 {[%clk 0:00:41]} 27. axb4 {[%clk 0:02:45]}  Nd5 {[%clk 0:00:24]} 28. cxd5 {[%clk 0:01:52]}  Qxc2 {[%clk 0:00:22]} 29. dxe6 {[%clk 0:01:47]}  Qxg2+ {[%clk 0:00:21]} 30. Ke1 {[%clk 0:01:48]}  Qh1+ {[%clk 0:00:20]} 31. Kd2 {[%clk 0:01:44]}  Qxh2+ {[%clk 0:00:19]} 32. Kc3 {[%clk 0:01:44]}  Qg3+ {[%clk 0:00:17]} 33. Kc4 {[%clk 0:01:42]}  fxe6 {[%clk 0:00:16]} 34. Qd8+ {[%clk 0:01:40]}  Kg7 {[%clk 0:00:16]} 35. Qe7+ {[%clk 0:01:39]}  Kg8 {[%clk 0:00:16]} 36. Qf7+ {[%clk 0:01:39]}  Kh8 {[%clk 0:00:16]} 37. Ng6# {[%clk 0:01:40]} 1-0


[Site "https://www.chess.com"]

[Event "Titled Tuesday Blitz June 13 Late 2023"]
[White "Pert, Richard G"]
[Black "Bogaudinov, Rushan"]
[WhiteFideId "404748"]
[BlackFideId "4129288"]
[WhiteElo "2441"]
[BlackElo "1967"]
[Result "1-0"]
[Round "5"]
[TimeControl "180+2"]
[Date "2023.06.13"]
[WhiteClock "0:00:13"]
[BlackClock "0:00:17"]
[Board "103"]

1. d4 {[%clk 0:03:00]}  Nf6 {[%clk 0:02:57]} 2. Nc3 {[%clk 0:02:59]}  d5 {[%clk 0:02:56]} 3. e4 {[%clk 0:02:59]}  Nxe4 {[%clk 0:02:54]} 4. Nxe4 {[%clk 0:02:59]}  dxe4 {[%clk 0:02:55]} 5. Bc4 {[%clk 0:02:59]}  Bf5 {[%clk 0:02:49]} 6. g4 {[%clk 0:02:59]}  Bg6 {[%clk 0:02:47]} 7. Ne2 {[%clk 0:02:58]}  e6 {[%clk 0:02:40]} 8. h4 {[%clk 0:02:56]}  h5 {[%clk 0:02:40]} 9. Nf4 {[%clk 0:02:56]}  Nc6 {[%clk 0:02:22]} 10. Nxg6 {[%clk 0:02:54]}  fxg6 {[%clk 0:02:23]} 11. c3 {[%clk 0:02:48]}  Qd6 {[%clk 0:02:04]} 12. Qb3 {[%clk 0:02:35]}  O-O-O {[%clk 0:01:54]} 13. Bxe6+ {[%clk 0:02:27]}  Kb8 {[%clk 0:01:54]} 14. Bg5 {[%clk 0:02:12]}  Be7 {[%clk 0:01:52]} 15. Bxe7 {[%clk 0:01:58]}  Nxe7 {[%clk 0:01:51]} 16. O-O-O {[%clk 0:01:49]}  Rhf8 {[%clk 0:01:48]} 17. Rhe1 {[%clk 0:01:34]}  Rf4 {[%clk 0:01:32]} 18. gxh5 {[%clk 0:01:30]}  gxh5 {[%clk 0:01:33]} 19. Kb1 {[%clk 0:01:28]}  Rxh4 {[%clk 0:01:32]} 20. a4 {[%clk 0:01:26]}  Rf4 {[%clk 0:01:28]} 21. d5 {[%clk 0:01:22]}  Qb6 {[%clk 0:01:15]} 22. Qxb6 {[%clk 0:01:16]}  axb6 {[%clk 0:01:15]} 23. Rd4 {[%clk 0:01:17]}  g5 {[%clk 0:01:08]} 24. Rdxe4 {[%clk 0:01:13]}  Rxf2 {[%clk 0:01:01]} 25. Re5 {[%clk 0:01:13]}  Rg2 {[%clk 0:00:59]} 26. Rf1 {[%clk 0:01:12]}  Ng6 {[%clk 0:00:56]} 27. Ref5 {[%clk 0:01:04]}  Nf4 {[%clk 0:00:54]} 28. R5xf4 {[%clk 0:00:41]}  gxf4 {[%clk 0:00:54]} 29. Rxf4 {[%clk 0:00:42]}  Rh8 {[%clk 0:00:50]} 30. Rh4 {[%clk 0:00:40]}  Re2 {[%clk 0:00:45]} 31. Ka2 {[%clk 0:00:39]}  c6 {[%clk 0:00:44]} 32. Kb3 {[%clk 0:00:38]}  Kc7 {[%clk 0:00:44]} 33. Bf7 {[%clk 0:00:26]}  Re5 {[%clk 0:00:43]} 34. c4 {[%clk 0:00:22]}  Kd6 {[%clk 0:00:41]} 35. Be6 {[%clk 0:00:19]}  Kc5 {[%clk 0:00:37]} 36. Kc3 {[%clk 0:00:17]}  Re3+ {[%clk 0:00:35]} 37. Kd2 {[%clk 0:00:17]}  Rg3 {[%clk 0:00:35]} 38. Kc2 {[%clk 0:00:17]}  Kb4 {[%clk 0:00:22]} 39. d6 {[%clk 0:00:17]}  Rf8 {[%clk 0:00:20]} 40. d7 {[%clk 0:00:15]}  Rf2+ {[%clk 0:00:15]} 41. Kb1 {[%clk 0:00:15]}  Rd3 {[%clk 0:00:12]} 42. c5+ {[%clk 0:00:12]}  Kxc5 {[%clk 0:00:12]} 43. Rc4+ {[%clk 0:00:12]}  Kd6 {[%clk 0:00:09]} 44. d8=Q+ {[%clk 0:00:12]}  Kxe6 {[%clk 0:00:10]} 45. Qxd3 {[%clk 0:00:10]}  Rf5 {[%clk 0:00:11]} 46. Re4+ {[%clk 0:00:09]}  Kf6 {[%clk 0:00:12]} 47. Qd4+ {[%clk 0:00:09]}  Kg5 {[%clk 0:00:13]} 48. Re5 {[%clk 0:00:10]}  h4 {[%clk 0:00:13]} 49. Rxf5+ {[%clk 0:00:10]}  Kxf5 {[%clk 0:00:14]} 50. Qd7+ {[%clk 0:00:10]}  Ke5 {[%clk 0:00:15]} 51. Qh3 {[%clk 0:00:10]}  Kd5 {[%clk 0:00:14]} 52. Qxh4 {[%clk 0:00:11]}  Kd6 {[%clk 0:00:15]} 53. Kc2 {[%clk 0:00:11]}  Kc7 {[%clk 0:00:16]} 54. b3 {[%clk 0:00:12]}  Kb8 {[%clk 0:00:16]} 55. Kc3 {[%clk 0:00:13]}  Ka7 {[%clk 0:00:17]} 56. Kc4 {[%clk 0:00:13]}  Ka6 {[%clk 0:00:18]} 57. Qg3 {[%clk 0:00:13]}  Ka5 {[%clk 0:00:18]} 58. Qc3+ {[%clk 0:00:13]}  Ka6 {[%clk 0:00:18]} 59. Qd3 {[%clk 0:00:14]}  c5 {[%clk 0:00:18]} 60. Qe2 {[%clk 0:00:13]}  Ka5 {[%clk 0:00:17]} 61. Kc3 {[%clk 0:00:13]}  b5 {[%clk 0:00:17]} 62. Qxb5# {[%clk 0:00:13]} 1-0


[Site "https://www.chess.com"]

[Event "Titled Tuesday Blitz June 13 Late 2023"]
[White "HamedWafa4"]
[Black "Papp, Petra"]
[BlackFideId "739049"]
[WhiteElo "2524"]
[BlackElo "2259"]
[Result "1-0"]
[Round "5"]
[TimeControl "180+2"]
[Date "2023.06.13"]
[WhiteClock "0:00:27"]
[BlackClock "0:00:00"]
[Board "104"]

1. e4 {[%clk 0:03:00]}  e5 {[%clk 0:02:57]} 2. Nf3 {[%clk 0:02:57]}  Nf6 {[%clk 0:02:57]} 3. Nc3 {[%clk 0:02:55]}  Nc6 {[%clk 0:02:56]} 4. Bb5 {[%clk 0:02:53]}  Nd4 {[%clk 0:02:54]} 5. Bc4 {[%clk 0:02:52]}  Bc5 {[%clk 0:02:39]} 6. Nxe5 {[%clk 0:02:51]}  d5 {[%clk 0:02:19]} 7. Bxd5 {[%clk 0:02:49]}  O-O {[%clk 0:02:16]} 8. Nxf7 {[%clk 0:02:08]}  Rxf7 {[%clk 0:01:59]} 9. Bxf7+ {[%clk 0:02:07]}  Kxf7 {[%clk 0:01:59]} 10. d3 {[%clk 0:02:07]}  Bg4 {[%clk 0:01:53]} 11. f3 {[%clk 0:02:04]}  Bh5 {[%clk 0:01:50]} 12. Ne2 {[%clk 0:01:04]}  Qd7 {[%clk 0:01:24]} 13. Nxd4 {[%clk 0:01:03]}  Qxd4 {[%clk 0:01:21]} 14. Qe2 {[%clk 0:01:02]}  Nd5 {[%clk 0:00:00]} 15. Rb1 {[%clk 0:00:27]} 1-0


[Site "https://www.chess.com"]

[Event "Titled Tuesday Blitz June 13 Late 2023"]
[White "Fedotov, Nikita"]
[Black "kiwibobo"]
[WhiteFideId "24161446"]
[WhiteElo "2211"]
[BlackElo "2307"]
[Result "1-0"]
[Round "5"]
[TimeControl "180+2"]
[Date "2023.06.13"]
[WhiteClock "0:01:39"]
[BlackClock "0:00:00"]
[Board "107"]

1. e4 {[%clk 0:03:00]}  e5 {[%clk 0:02:57]} 2. Nf3 {[%clk 0:03:01]}  Nc6 {[%clk 0:02:56]} 3. Nc3 {[%clk 0:03:01]}  Nf6 {[%clk 0:02:55]} 4. d4 {[%clk 0:03:02]}  exd4 {[%clk 0:02:55]} 5. Nxd4 {[%clk 0:03:02]}  Bb4 {[%clk 0:02:55]} 6. Nxc6 {[%clk 0:03:02]}  bxc6 {[%clk 0:02:56]} 7. Bd3 {[%clk 0:03:03]}  d5 {[%clk 0:02:56]} 8. Bd2 {[%clk 0:03:03]}  O-O {[%clk 0:02:46]} 9. O-O {[%clk 0:03:03]}  Bxc3 {[%clk 0:02:46]} 10. Bxc3 {[%clk 0:03:03]}  dxe4 {[%clk 0:02:47]} 11. Bxf6 {[%clk 0:03:03]}  Qxf6 {[%clk 0:02:47]} 12. Bxe4 {[%clk 0:03:03]}  Qxb2 {[%clk 0:02:46]} 13. Bxc6 {[%clk 0:03:04]}  Rb8 {[%clk 0:02:46]} 14. Rb1 {[%clk 0:03:05]}  Qxb1 {[%clk 0:02:46]} 15. Qxb1 {[%clk 0:03:05]}  Rxb1 {[%clk 0:02:45]} 16. Rxb1 {[%clk 0:03:06]}  Rd8 {[%clk 0:02:43]} 17. Bf3 {[%clk 0:03:05]}  Kf8 {[%clk 0:01:58]} 18. Rb8 {[%clk 0:03:03]}  Re8 {[%clk 0:01:58]} 19. h4 {[%clk 0:02:54]}  Be6 {[%clk 0:01:47]} 20. Rb7 {[%clk 0:02:53]}  Rd8 {[%clk 0:01:01]} 21. Rxa7 {[%clk 0:02:49]}  Rd2 {[%clk 0:00:54]} 22. Be4 {[%clk 0:02:46]}  c6 {[%clk 0:00:47]} 23. a4 {[%clk 0:02:45]}  Bd5 {[%clk 0:00:35]} 24. Bd3 {[%clk 0:02:45]}  c5 {[%clk 0:00:26]} 25. Rd7 {[%clk 0:02:23]}  c4 {[%clk 0:00:20]} 26. Rxd5 {[%clk 0:02:19]}  cxd3 {[%clk 0:00:19]} 27. cxd3 {[%clk 0:02:19]}  Ra2 {[%clk 0:00:20]} 28. Rd4 {[%clk 0:02:09]}  Ra3 {[%clk 0:00:20]} 29. Kh2 {[%clk 0:02:08]}  h5 {[%clk 0:00:18]} 30. Kg3 {[%clk 0:02:08]}  g6 {[%clk 0:00:19]} 31. Kf4 {[%clk 0:02:05]}  Ra2 {[%clk 0:00:19]} 32. Ke3 {[%clk 0:02:04]}  Ra1 {[%clk 0:00:19]} 33. g3 {[%clk 0:02:04]}  Kg7 {[%clk 0:00:17]} 34. Rb4 {[%clk 0:02:02]}  Kf6 {[%clk 0:00:17]} 35. Kf4 {[%clk 0:02:01]}  Ra2 {[%clk 0:00:17]} 36. f3 {[%clk 0:02:01]}  Ra3 {[%clk 0:00:17]} 37. d4 {[%clk 0:01:58]}  Ke6 {[%clk 0:00:10]} 38. g4 {[%clk 0:01:58]}  Rd3 {[%clk 0:00:08]} 39. a5 {[%clk 0:01:49]}  Ra3 {[%clk 0:00:05]} 40. Rb6+ {[%clk 0:01:49]}  Kd5 {[%clk 0:00:04]} 41. gxh5 {[%clk 0:01:44]}  gxh5 {[%clk 0:00:04]} 42. Rb5+ {[%clk 0:01:44]}  Kxd4 {[%clk 0:00:04]} 43. Rxh5 {[%clk 0:01:44]}  f6 {[%clk 0:00:03]} 44. Rf5 {[%clk 0:01:43]}  Ra4 {[%clk 0:00:01]} 45. Kg3 {[%clk 0:01:40]}  Ke3 {[%clk 0:00:00]} 46. h5 {[%clk 0:01:39]} 1-0


[Site "https://www.chess.com"]